[Event "Early-Titled-Tuesday-Blitz-January-16-2024"]
[Site "Chess.com"]
[Date "2024.01.16"]
[Round "11"]
[White "ScofieldMichael01"]
[Black "tusplingher"]
[Result "0-1"]
[WhiteElo "2572"]
[BlackElo "2493"]
[TimeControl "180+1"]
[EndTime "10:11:03 PST"]
[Termination "tusplingher won by resignation"]

1. e4 {[%clk 0:03:00.9]} 1... c5 {[%clk 0:02:57.1]} 2. d4 {[%clk 0:02:58.1]}
2... cxd4 {[%clk 0:02:56.2]} 3. c3 {[%clk 0:02:58.8]} 3... dxc3 {[%clk
0:02:55.8]} 4. Nxc3 {[%clk 0:02:59.7]} 4... Nc6 {[%clk 0:02:54.3]} 5. Nf3 {[%clk
0:02:59.6]} 5... e6 {[%clk 0:02:50]} 6. Bc4 {[%clk 0:02:59.6]} 6... Bb4 {[%clk
0:02:49.5]} 7. O-O {[%clk 0:02:58.8]} 7... Bxc3 {[%clk 0:02:47.8]} 8. bxc3
{[%clk 0:02:58]} 8... Nge7 {[%clk 0:02:48.5]} 9. Ba3 {[%clk 0:02:56.9]} 9... O-O
{[%clk 0:02:44]} 10. Bd6 {[%clk 0:02:57.2]} 10... Re8 {[%clk 0:02:38.4]} 11. e5
{[%clk 0:02:56.3]} 11... Nf5 {[%clk 0:02:35.2]} 12. Bb5 {[%clk 0:02:38.7]} 12...
Nxd6 {[%clk 0:02:26.7]} 13. Qxd6 {[%clk 0:02:36.4]} 13... Qa5 {[%clk 0:02:23.9]}
14. Bxc6 {[%clk 0:02:28]} 14... dxc6 {[%clk 0:02:14.1]} 15. Rad1 {[%clk
0:02:06.9]} 15... b6 {[%clk 0:02:10.6]} 16. Ng5 {[%clk 0:01:59.1]} 16... Ba6
{[%clk 0:02:06.1]} 17. Rfe1 {[%clk 0:01:54.5]} 17... h6 {[%clk 0:02:03.1]} 18.
Ne4 {[%clk 0:01:42.7]} 18... Bc4 {[%clk 0:01:56]} 19. Re3 {[%clk 0:01:32.5]}
19... Bd5 {[%clk 0:01:36.7]} 20. Nf6+ {[%clk 0:01:30.9]} 20... gxf6 {[%clk
0:01:34.9]} 21. exf6 {[%clk 0:01:31.8]} 21... Kh7 {[%clk 0:01:07.4]} 22. Rg3
{[%clk 0:01:31.5]} 22... Rg8 {[%clk 0:00:58.3]} 23. Qe7 {[%clk 0:01:31.3]} 23...
Raf8 {[%clk 0:00:55.6]} 24. Rd4 {[%clk 0:01:24.6]} 24... Qc5 {[%clk 0:00:48.7]}
25. Rxg8 {[%clk 0:01:13.4]} 25... Kxg8 {[%clk 0:00:39.4]} 26. Rg4+ {[%clk
0:01:12]} 26... Kh8 {[%clk 0:00:37]} 27. Qc7 {[%clk 0:01:06.9]} 27... Rg8 {[%clk
0:00:26]} 28. h3 {[%clk 0:00:42.3]} 28... Rxg4 {[%clk 0:00:22.7]} 29. hxg4
{[%clk 0:00:43.2]} 29... Qf8 {[%clk 0:00:21.1]} 30. Qxa7 {[%clk 0:00:43.1]}
30... b5 {[%clk 0:00:19.5]} 31. Qc7 {[%clk 0:00:41]} 31... Qg8 {[%clk
0:00:17.1]} 32. f3 {[%clk 0:00:40.5]} 32... h5 {[%clk 0:00:16.1]} 33. Qh2 {[%clk
0:00:34]} 33... Qg6 {[%clk 0:00:16.3]} 34. gxh5 {[%clk 0:00:22.6]} 34... Qxf6
{[%clk 0:00:16.5]} 35. Qb8+ {[%clk 0:00:20.7]} 35... Kh7 {[%clk 0:00:16.8]} 36.
Qc7 {[%clk 0:00:19.6]} 36... Kg7 {[%clk 0:00:15.8]} 37. Qg3+ {[%clk 0:00:18.8]}
37... Kh6 {[%clk 0:00:16]} 38. Qg8 {[%clk 0:00:14.6]} 38... Qg7 {[%clk
0:00:14.5]} 39. Qd8 {[%clk 0:00:13.7]} 39... Qxc3 {[%clk 0:00:12.8]} 40. Qf8+
{[%clk 0:00:07.7]} 40... Qg7 {[%clk 0:00:12.5]} 41. Qd6 {[%clk 0:00:08.2]} 41...
Kxh5 {[%clk 0:00:07.4]} 42. Qh2+ {[%clk 0:00:08.3]} 42... Kg6 {[%clk 0:00:07.1]}
43. Qg3+ {[%clk 0:00:08.5]} 43... Kh7 {[%clk 0:00:07.5]} 44. Qh4+ {[%clk
0:00:09.1]} 44... Qh6 {[%clk 0:00:07.6]} 45. Qe7 {[%clk 0:00:08.4]} 45... Qg6
{[%clk 0:00:07.8]} 46. Qh4+ {[%clk 0:00:06.6]} 46... Kg7 {[%clk 0:00:08.4]} 47.
Qd4+ {[%clk 0:00:06.7]} 47... Qf6 {[%clk 0:00:08.5]} 48. Qg4+ {[%clk 0:00:06.9]}
48... Kf8 {[%clk 0:00:09.2]} 49. Qg3 {[%clk 0:00:06.3]} 49... e5 {[%clk
0:00:08.1]} 50. Qg4 {[%clk 0:00:06.4]} 50... Ke7 {[%clk 0:00:07.9]} 51. Qb4+
{[%clk 0:00:06]} 51... Qd6 {[%clk 0:00:08.1]} 52. Qh4+ {[%clk 0:00:05.8]} 52...
Kd7 {[%clk 0:00:08.1]} 53. Qg4+ {[%clk 0:00:06.4]} 53... Be6 {[%clk 0:00:07.4]}
54. Qg8 {[%clk 0:00:07.1]} 54... Qd4+ {[%clk 0:00:07.4]} 55. Kh2 {[%clk
0:00:06.2]} 55... Bxa2 {[%clk 0:00:07.2]} 56. Qb8 {[%clk 0:00:05.7]} 56... Be6
{[%clk 0:00:06.2]} 57. Qb7+ {[%clk 0:00:06.1]} 57... Ke8 {[%clk 0:00:06.6]} 58.
Qb8+ {[%clk 0:00:06.4]} 58... Ke7 {[%clk 0:00:07.1]} 59. Qc7+ {[%clk 0:00:06.7]}
59... Kf6 {[%clk 0:00:07.6]} 60. Qb8 {[%clk 0:00:06.6]} 60... b4 {[%clk
0:00:06]} 61. Qh8+ {[%clk 0:00:06]} 61... Ke7 {[%clk 0:00:06.4]} 62. Qb8 {[%clk
0:00:05.8]} 62... b3 {[%clk 0:00:06.3]} 63. Qc7+ {[%clk 0:00:04.4]} 63... Kf6
{[%clk 0:00:06]} 64. Qb8 {[%clk 0:00:03.4]} 64... b2 {[%clk 0:00:05.4]} 65. g4
{[%clk 0:00:04]} 65... Qf4+ {[%clk 0:00:05]} 66. Kg2 {[%clk 0:00:04.1]} 66...
Qd2+ {[%clk 0:00:05.2]} 67. Kg3 {[%clk 0:00:04.4]} 67... Qe1+ {[%clk 0:00:05.7]}
68. Kh3 {[%clk 0:00:03.4]} 68... Qh1+ {[%clk 0:00:05.7]} 69. Kg3 {[%clk
0:00:03.1]} 69... b1=Q {[%clk 0:00:06.3]} 70. Qd8+ {[%clk 0:00:03.2]} 70... Kg7
{[%clk 0:00:06.8]} 71. Qg5+ {[%clk 0:00:03.3]} 71... Kh7 {[%clk 0:00:06.8]} 72.
Qxe5 {[%clk 0:00:01.8]} 72... Qbg1+ {[%clk 0:00:06.4]} 73. Kf4 {[%clk
0:00:02.7]} 73... Qhh2+ {[%clk 0:00:06.9]} 74. Ke4 {[%clk 0:00:02.7]} 74...
Qxe5+ {[%clk 0:00:07.8]} 75. Kxe5 {[%clk 0:00:03.6]} 75... Qe3+ {[%clk
0:00:08.1]} 76. Kf6 {[%clk 0:00:03.7]} 76... Qxf3+ {[%clk 0:00:08.8]} 77. Ke7
{[%clk 0:00:04.6]} 77... Qxg4 {[%clk 0:00:09.2]} 78. Kf8 {[%clk 0:00:05.3]}
78... Qf5 {[%clk 0:00:09.8]} 79. Ke7 {[%clk 0:00:06.2]} 79... c5 {[%clk
0:00:09.7]} 80. Kf8 {[%clk 0:00:07.1]} 80... c4 {[%clk 0:00:10.2]} 81. Ke7
{[%clk 0:00:08]} 81... c3 {[%clk 0:00:10.7]} 82. Kf8 {[%clk 0:00:08.9]} 82... c2
{[%clk 0:00:11.4]} 83. Ke7 {[%clk 0:00:09.8]} 83... c1=Q {[%clk 0:00:11.9]} 84.
Kf8 {[%clk 0:00:10.7]} 84... Qcc5+ {[%clk 0:00:11.9]} 85. Ke8 {[%clk 0:00:10.9]}
85... Qc8+ {[%clk 0:00:12]} 0-1

[Event "Early-Titled-Tuesday-Blitz-January-16-2024"]
[Site "Chess.com"]
[Date "2024.01.16"]
[Round "11"]
[White "PavelShkapenko"]
[Black "Zhigalko_Sergei"]
[Result "0-1"]
[WhiteElo "2786"]
[BlackElo "2959"]
[TimeControl "180+1"]
[EndTime "10:11:04 PST"]
[Termination "Zhigalko_Sergei won by resignation"]

1. e4 {[%clk 0:03:00.9]} 1... c5 {[%clk 0:02:59.9]} 2. c3 {[%clk 0:03:00.5]}
2... Nf6 {[%clk 0:02:59.9]} 3. e5 {[%clk 0:03:00.8]} 3... Nd5 {[%clk 0:03:00.4]}
4. d4 {[%clk 0:03:01.6]} 4... cxd4 {[%clk 0:03:01.3]} 5. cxd4 {[%clk 0:03:02]}
5... d6 {[%clk 0:02:59.7]} 6. Nf3 {[%clk 0:03:02]} 6... Nc6 {[%clk 0:02:59.8]}
7. Bc4 {[%clk 0:03:01.8]} 7... Nb6 {[%clk 0:03:00.1]} 8. Bb3 {[%clk 0:03:01.9]}
8... d5 {[%clk 0:02:59.9]} 9. Nh4 {[%clk 0:03:01.3]} 9... e6 {[%clk 0:02:59]}
10. Nf3 {[%clk 0:03:01.5]} 10... Be7 {[%clk 0:02:58.6]} 11. O-O {[%clk
0:03:01.4]} 11... Bd7 {[%clk 0:02:59.1]} 12. Nc3 {[%clk 0:03:01.2]} 12... Rc8
{[%clk 0:02:59.7]} 13. Ne2 {[%clk 0:02:56.9]} 13... Qc7 {[%clk 0:02:53.1]} 14.
Bf4 {[%clk 0:02:46.8]} 14... Na5 {[%clk 0:02:45.9]} 15. Rc1 {[%clk 0:02:45.1]}
15... Qb8 {[%clk 0:02:26.9]} 16. Bg5 {[%clk 0:02:36.3]} 16... Rxc1 {[%clk
0:02:20]} 17. Qxc1 {[%clk 0:02:25]} 17... Qd8 {[%clk 0:01:59.8]} 18. Ng3 {[%clk
0:01:50.1]} 18... Bb5 {[%clk 0:01:47.3]} 19. Re1 {[%clk 0:01:42.9]} 19... Bxg5
{[%clk 0:01:42.4]} 20. Nxg5 {[%clk 0:01:41.1]} 20... h6 {[%clk 0:01:36.5]} 21.
Nf3 {[%clk 0:01:35]} 21... O-O {[%clk 0:00:45.1]} 22. Nh5 {[%clk 0:01:32.9]}
22... Bd3 {[%clk 0:00:35]} 23. Bc2 {[%clk 0:01:24]} 23... Bg6 {[%clk 0:00:31.5]}
24. Nf4 {[%clk 0:01:12.2]} 24... Bxc2 {[%clk 0:00:27.6]} 25. Qxc2 {[%clk
0:01:13.1]} 25... Nc6 {[%clk 0:00:27.2]} 26. Nh5 {[%clk 0:01:08.2]} 26... Qe7
{[%clk 0:00:20.4]} 27. Qd2 {[%clk 0:01:03]} 27... Rc8 {[%clk 0:00:20.1]} 28. Qf4
{[%clk 0:01:02.8]} 28... Kh8 {[%clk 0:00:14.3]} 29. Qg4 {[%clk 0:00:50.2]} 29...
Qf8 {[%clk 0:00:14.3]} 30. Rc1 {[%clk 0:00:49.8]} 30... Nd7 {[%clk 0:00:12.7]}
31. h3 {[%clk 0:00:45.1]} 31... a6 {[%clk 0:00:04.1]} 32. Rc3 {[%clk 0:00:43.7]}
32... Ne7 {[%clk 0:00:03.8]} 33. Rxc8 {[%clk 0:00:29.8]} 33... Nxc8 {[%clk
0:00:04.7]} 34. Nh4 {[%clk 0:00:30]} 34... Ne7 {[%clk 0:00:04.5]} 35. Kh2 {[%clk
0:00:27.5]} 35... Nb8 {[%clk 0:00:04.4]} 36. f4 {[%clk 0:00:27.3]} 36... Nbc6
{[%clk 0:00:04.4]} 37. f5 {[%clk 0:00:20.2]} 37... exf5 {[%clk 0:00:04.3]} 38.
Nxf5 {[%clk 0:00:20.5]} 38... Nxf5 {[%clk 0:00:05.1]} 39. Qxf5 {[%clk 0:00:21]}
39... Nxd4 {[%clk 0:00:05.7]} 40. Qd3 {[%clk 0:00:20.7]} 40... Qc5 {[%clk
0:00:04.7]} 41. Qg3 {[%clk 0:00:12.5]} 41... Ne6 {[%clk 0:00:04.9]} 42. Qf3
{[%clk 0:00:11.9]} 42... Kg8 {[%clk 0:00:03.2]} 43. Qg3 {[%clk 0:00:10.8]} 43...
Qd4 {[%clk 0:00:03.1]} 44. Nf6+ {[%clk 0:00:10.9]} 44... Kh8 {[%clk 0:00:03]}
45. Nh5 {[%clk 0:00:10.6]} 45... Qxb2 {[%clk 0:00:02.6]} 46. Qf3 {[%clk
0:00:10.8]} 46... Qxe5+ {[%clk 0:00:02.8]} 47. Ng3 {[%clk 0:00:10.7]} 47... Kg8
{[%clk 0:00:02.5]} 48. Qb3 {[%clk 0:00:10.7]} 48... Ng5 {[%clk 0:00:02.5]} 49.
Kh1 {[%clk 0:00:09]} 49... b5 {[%clk 0:00:02.9]} 50. Nf1 {[%clk 0:00:08]} 50...
Ne4 {[%clk 0:00:03]} 51. Qf3 {[%clk 0:00:07.9]} 51... Qf6 {[%clk 0:00:03.1]} 52.
Qxf6 {[%clk 0:00:06.8]} 52... Nxf6 {[%clk 0:00:03]} 53. Ne3 {[%clk 0:00:07.7]}
53... a5 {[%clk 0:00:03.3]} 54. Nf5 {[%clk 0:00:08]} 54... b4 {[%clk 0:00:03.5]}
55. Nd4 {[%clk 0:00:08.6]} 55... a4 {[%clk 0:00:03.7]} 56. Kg1 {[%clk
0:00:09.3]} 56... Ne4 {[%clk 0:00:04.2]} 57. Kf1 {[%clk 0:00:09.4]} 57... Nc3
{[%clk 0:00:04.4]} 58. Nc2 {[%clk 0:00:08.7]} 58... Nxa2 {[%clk 0:00:04.6]} 59.
Ke2 {[%clk 0:00:09.6]} 59... b3 {[%clk 0:00:04.8]} 60. Na3 {[%clk 0:00:10]}
60... Nc3+ {[%clk 0:00:04.1]} 61. Kd3 {[%clk 0:00:10.6]} 61... Ne4 {[%clk
0:00:04.2]} 62. Kd4 {[%clk 0:00:10.9]} 62... b2 {[%clk 0:00:04.5]} 63. Kd3
{[%clk 0:00:10.6]} 63... f5 {[%clk 0:00:04.4]} 64. Kc2 {[%clk 0:00:10.9]} 64...
Kf7 {[%clk 0:00:04.3]} 65. Kxb2 {[%clk 0:00:11.3]} 65... Ke6 {[%clk 0:00:04.8]}
66. Kc2 {[%clk 0:00:11.9]} 66... Ke5 {[%clk 0:00:05]} 67. Kd3 {[%clk 0:00:12.5]}
67... Kf4 {[%clk 0:00:05.3]} 68. Kd4 {[%clk 0:00:13.1]} 68... Kg3 {[%clk
0:00:05]} 69. Kxd5 {[%clk 0:00:13.7]} 69... Kxg2 {[%clk 0:00:05.5]} 70. Ke5
{[%clk 0:00:14.6]} 70... g6 {[%clk 0:00:05.6]} 71. h4 {[%clk 0:00:15.2]} 71...
Kh3 {[%clk 0:00:05.4]} 72. h5 {[%clk 0:00:15.7]} 72... gxh5 {[%clk 0:00:06]} 73.
Kxf5 {[%clk 0:00:15.7]} 73... Nc5 {[%clk 0:00:06.5]} 74. Kg6 {[%clk 0:00:16.2]}
74... h4 {[%clk 0:00:06.8]} 75. Kxh6 {[%clk 0:00:16.5]} 75... Kg2 {[%clk
0:00:07.2]} 76. Nc4 {[%clk 0:00:16.5]} 76... h3 {[%clk 0:00:08.1]} 77. Ne3+
{[%clk 0:00:16.5]} 77... Kf3 {[%clk 0:00:07.8]} 78. Nf1 {[%clk 0:00:16.8]} 78...
a3 {[%clk 0:00:08]} 79. Nd2+ {[%clk 0:00:17.1]} 79... Kg2 {[%clk 0:00:08.2]} 80.
Nc4 {[%clk 0:00:16.6]} 80... a2 {[%clk 0:00:08.5]} 81. Ne3+ {[%clk 0:00:17.5]}
81... Kf3 {[%clk 0:00:08.6]} 82. Nc2 {[%clk 0:00:18.4]} 82... h2 {[%clk
0:00:08.7]} 83. Nd4+ {[%clk 0:00:18.5]} 83... Kg2 {[%clk 0:00:08.8]} 0-1

[Event "Early-Titled-Tuesday-Blitz-January-16-2024"]
[Site "Chess.com"]
[Date "2024.01.16"]
[Round "11"]
[White "Caroexpert"]
[Black "Jojo_898"]
[Result "1-0"]
[WhiteElo "2569"]
[BlackElo "2453"]
[TimeControl "180+1"]
[EndTime "10:11:16 PST"]
[Termination "Caroexpert won on time"]

1. Nf3 {[%clk 0:03:00.9]} 1... Nf6 {[%clk 0:02:58.8]} 2. d4 {[%clk 0:02:45]}
2... b6 {[%clk 0:02:56.4]} 3. Bf4 {[%clk 0:02:44.8]} 3... Bb7 {[%clk 0:02:56.2]}
4. e3 {[%clk 0:02:45.1]} 4... g6 {[%clk 0:02:53]} 5. Be2 {[%clk 0:02:43.3]} 5...
Bg7 {[%clk 0:02:53.7]} 6. O-O {[%clk 0:02:32.1]} 6... O-O {[%clk 0:02:54.4]} 7.
h3 {[%clk 0:02:32.3]} 7... c5 {[%clk 0:02:53]} 8. c3 {[%clk 0:02:28.4]} 8... d5
{[%clk 0:02:50.4]} 9. Nbd2 {[%clk 0:02:27]} 9... Nc6 {[%clk 0:02:48.5]} 10. Ne5
{[%clk 0:02:27.5]} 10... Nd7 {[%clk 0:02:40.3]} 11. Nxc6 {[%clk 0:02:06.1]}
11... Bxc6 {[%clk 0:02:39.7]} 12. b4 {[%clk 0:02:03.6]} 12... c4 {[%clk
0:02:36.7]} 13. Nf3 {[%clk 0:02:00.2]} 13... f6 {[%clk 0:02:31]} 14. Bh2 {[%clk
0:01:59.8]} 14... e5 {[%clk 0:02:20]} 15. dxe5 {[%clk 0:01:57.3]} 15... fxe5
{[%clk 0:02:18.7]} 16. e4 {[%clk 0:01:57.4]} 16... dxe4 {[%clk 0:02:11.8]} 17.
Bxc4+ {[%clk 0:01:56.1]} 17... Kh8 {[%clk 0:02:12.2]} 18. Nd2 {[%clk 0:01:56.4]}
18... Qg5 {[%clk 0:02:05.2]} 19. Qe2 {[%clk 0:01:50.4]} 19... e3 {[%clk
0:02:02.4]} 20. fxe3 {[%clk 0:01:50.6]} 20... Bh6 {[%clk 0:01:56.7]} 21. Rae1
{[%clk 0:01:47.3]} 21... Nf6 {[%clk 0:01:43.3]} 22. Nf3 {[%clk 0:01:38.5]} 22...
Bxf3 {[%clk 0:01:36.2]} 23. Rxf3 {[%clk 0:01:39.4]} 23... Ne4 {[%clk 0:01:36.8]}
24. Bd5 {[%clk 0:01:37.5]} 24... Nxc3 {[%clk 0:01:32.9]} 25. Qd3 {[%clk
0:01:17.2]} 25... Nxd5 {[%clk 0:01:23.1]} 26. Qxd5 {[%clk 0:01:18.1]} 26... Bg7
{[%clk 0:01:21.9]} 27. Ref1 {[%clk 0:01:13.9]} 27... Rfd8 {[%clk 0:01:17.1]} 28.
Qe4 {[%clk 0:01:02.2]} 28... Rac8 {[%clk 0:01:07]} 29. h4 {[%clk 0:01:00.2]}
29... Qh5 {[%clk 0:00:59.5]} 30. Rf7 {[%clk 0:00:58.8]} 30... Re8 {[%clk
0:00:28.1]} 31. Qb7 {[%clk 0:00:45.5]} 31... Qh6 {[%clk 0:00:25.3]} 32. Kh1
{[%clk 0:00:35.4]} 32... Rg8 {[%clk 0:00:20.5]} 33. Qe4 {[%clk 0:00:17.3]} 33...
Rcd8 {[%clk 0:00:19]} 34. Bg3 {[%clk 0:00:15.8]} 34... Rde8 {[%clk 0:00:17.3]}
35. Kh2 {[%clk 0:00:16]} 35... a5 {[%clk 0:00:16.9]} 36. Kh3 {[%clk 0:00:16.4]}
36... axb4 {[%clk 0:00:16.6]} 37. Qxb4 {[%clk 0:00:17]} 37... Qxe3 {[%clk
0:00:16.3]} 38. Qg4 {[%clk 0:00:15.7]} 38... Qh6 {[%clk 0:00:15]} 39. Rd7 {[%clk
0:00:11.8]} 39... Rgf8 {[%clk 0:00:12.2]} 40. Rxf8+ {[%clk 0:00:10.4]} 40...
Rxf8 {[%clk 0:00:12.8]} 41. Rb7 {[%clk 0:00:08.1]} 41... Re8 {[%clk 0:00:10.7]}
42. Qd7 {[%clk 0:00:07.9]} 42... Rg8 {[%clk 0:00:09.4]} 43. Rxb6 {[%clk
0:00:06.8]} 43... e4 {[%clk 0:00:08.4]} 44. Re6 {[%clk 0:00:06.3]} 44... e3
{[%clk 0:00:07.8]} 45. Re8 {[%clk 0:00:06.3]} 45... Qh5 {[%clk 0:00:06.2]} 46.
Qf7 {[%clk 0:00:04.1]} 46... Qf5+ {[%clk 0:00:04.4]} 47. Qxf5 {[%clk 0:00:04.3]}
47... gxf5 {[%clk 0:00:05.3]} 48. Rxe3 {[%clk 0:00:05]} 48... Ra8 {[%clk
0:00:06]} 49. Re2 {[%clk 0:00:05.1]} 49... Bf6 {[%clk 0:00:05.5]} 50. Bf4 {[%clk
0:00:05.1]} 50... Ra3+ {[%clk 0:00:05.9]} 51. g3 {[%clk 0:00:05.4]} 51... Kg7
{[%clk 0:00:06.4]} 52. Kg2 {[%clk 0:00:06]} 52... Kf7 {[%clk 0:00:06.9]} 53. Kf2
{[%clk 0:00:06.6]} 53... Bd4+ {[%clk 0:00:06.5]} 54. Ke1 {[%clk 0:00:06.9]}
54... Bc3+ {[%clk 0:00:06.7]} 55. Kd1 {[%clk 0:00:07.5]} 55... Bd4 {[%clk
0:00:07]} 56. Kc1 {[%clk 0:00:07.9]} 56... Kg6 {[%clk 0:00:07.6]} 57. Kb1 {[%clk
0:00:07.5]} 57... Kh5 {[%clk 0:00:07.4]} 58. Rd2 {[%clk 0:00:07.6]} 58... Bg1
{[%clk 0:00:06.6]} 59. Rd7 {[%clk 0:00:07.6]} 59... Kg4 {[%clk 0:00:05.8]} 60.
Rxh7 {[%clk 0:00:07]} 60... Bf2 {[%clk 0:00:05.6]} 61. Rg7+ {[%clk 0:00:05.4]}
61... Kf3 {[%clk 0:00:06]} 62. h5 {[%clk 0:00:05.8]} 62... Bd4 {[%clk
0:00:05.5]} 63. Rf7 {[%clk 0:00:04.5]} 63... Kg4 {[%clk 0:00:02]} 64. h6 {[%clk
0:00:04.3]} 64... Rd3 {[%clk 0:00:02.4]} 65. Kc2 {[%clk 0:00:04.3]} 65... Rf3
{[%clk 0:00:02]} 66. h7 {[%clk 0:00:03.9]} 66... Rf2+ {[%clk 0:00:02.7]} 67. Kd3
{[%clk 0:00:04.5]} 67... Ba1 {[%clk 0:00:01.7]} 68. Rf8 {[%clk 0:00:04.7]} 68...
Rxa2 {[%clk 0:00:01.3]} 69. h8=Q {[%clk 0:00:05.1]} 1-0